bitfinex-derivatives/quotes_ETHF0:USTF0_20250902
["timestamp","ask_amount","ask_price","bid_price","bid_amount"]
[1756821152939,1.1279,4380.9,4380.3,0.277]
[1756821153134,1.1279,4380.9,4380.1,0.277]
[1756821153332,0.277,4381.2,4379.2,3.2078]
[1756821153333,1.1279,4380.4,4379.2,3.2078]
[1756821153532,1.1279,4379.8,4377.9,3.2078]
[1756821153740,3.2078,4379.2,4378.0,0.277]
[1756821153943,3.2078,4379.2,4377.9,3.2078]
[1756821153944,1.1279,4379.1,4377.9,3.2078]
[1756821154145,1.1279,4378.6,4377.9,3.4848]
[1756821154534,0.448,4379.9,4378.5,3.2078]
[1756821154535,1.1279,4379.3,4378.5,3.2078]
[1756821154845,1.1279,4379.3,4379.2,3.2078]
[1756821155039,1.1279,4379.8,4378.9,3.2078]
[1756821155239,0.448,4379.2,4377.9,3.2078]
[1756821155438,1.1279,4379.1,4378.6,3.2078]
[1756821155647,1.1279,4379.3,4378.6,3.2078]
[1756821156141,3.2078,4379.8,4378.9,3.2078]
[1756821156347,3.2078,4379.2,4378.7,0.277]
[1756821156540,3.6558,4379.2,4378.1,0.277]
[1756821156842,1.1279,4379.8,4378.5,3.2078]
[1756821157032,1.1279,4379.8,4378.6,0.277]
[1756821157239,3.2078,4379.4,4378.4,0.277]
[1756821157440,0.448,4379.2,4378.4,0.277]
[1756821157641,1.1279,4379.7,4378.8,3.2078]
[1756821157839,1.1279,4379.8,4378.9,0.277]
[1756821158039,3.2078,4379.7,4378.5,3.4848]
[1756821158241,1.1279,4379.6,4378.5,3.4848]
[1756821158443,3.2078,4379.0,4378.5,0.277]
[1756821158746,1.1279,4379.1,4378.9,3.2078]
[1756821159042,1.1279,4379.1,4378.5,0.277]
[1756821159043,1.0976,4379.6,4378.5,0.277]
[1756821159240,1.0976,4379.1,4378.5,0.277]
[1756821159548,1.0976,4379.2,4378.6,3.2078]
[1756821159740,1.0976,4379.8,4379.1,3.2078]
[1756821159940,3.2078,4379.7,4379.2,0.277]
[1756821160342,1.0976,4379.6,4379.2,0.277]
[1756821161042,3.2078,4379.7,4378.6,3.2078]
[1756821161248,1.0976,4379.6,4378.6,3.4848]
[1756821161744,1.0976,4379.6,4378.9,3.2078]
[1756821161944,3.2078,4380.2,4379.4,3.2078]
[1756821161945,4.3054,4380.2,4379.4,3.2078]
[1756821162146,4.3054,4380.2,4379.5,0.277]
[1756821162449,1.0976,4379.9,4378.8,0.277]
[1756821162744,0.4299,4380.0,4378.8,0.277]
[1756821162745,1.5275,4380.0,4379.4,3.2078]
[1756821163046,0.448,4380.6,4379.5,0.9783]
[1756821163248,1.0976,4380.5,4379.4,3.2078]
[1756821163542,1.0976,4380.5,4380.0,3.2078]
[1756821163743,1.0976,4380.5,4380.0,0.277]
[1756821163950,1.0976,4380.6,4380.0,3.4848]
[1756821164141,1.0976,4381.2,4380.5,3.2078]
[1756821164343,1.0976,4381.2,4381.1,3.2078]
[1756821164744,0.4299,4381.8,4381.1,3.2078]
[1756821164745,1.5275,4381.8,4381.1,3.2078]
[1756821164948,0.4299,4381.8,4381.1,3.2078]
[1756821165247,1.0976,4381.7,4381.1,3.2078]
[1756821165546,1.0976,4382.8,4381.6,3.2078]
[1756821165747,1.0976,4382.8,4382.1,3.2078]
[1756821165951,0.4299,4383.6,4382.7,3.2078]
[1756821166252,1.0976,4383.5,4382.8,0.277]
[1756821166453,1.0976,4383.3,4382.7,0.277]
[1756821166853,1.0976,4383.5,4382.7,0.277]
[1756821167054,1.0976,4383.5,4382.8,3.2078]
[1756821167750,1.0976,4383.5,4383.3,3.2078]
[1756821167950,1.0976,4383.5,4383.4,3.2078]
[1756821168257,0.4299,4384.1,4382.4,3.2078]
[1756821168258,3.2078,4383.9,4382.4,3.2078]
[1756821168559,1.0976,4383.3,4382.6,0.277]
[1756821169151,1.0976,4383.3,4382.7,0.277]
[1756821169558,4.0,4383.2,4382.4,3.2078]
[1756821169762,0.4299,4383.0,4382.4,3.2078]
[1756821169945,0.4299,4383.0,4382.2,0.277]
[1756821169946,1.0976,4383.0,4382.9,3.2078]
[1756821170256,1.0976,4383.3,4382.4,3.4848]
[1756821170648,1.0976,4382.9,4381.9,3.2078]
[1756821170846,1.0976,4382.9,4382.0,0.277]
[1756821171250,1.0976,4383.3,4382.4,3.2078]
[1756821171454,1.0976,4383.3,4382.5,0.277]
[1756821171653,1.0976,4383.2,4382.4,3.2078]
[1756821171860,1.0976,4383.2,4382.3,0.277]
[1756821172054,0.4299,4383.0,4382.1,0.277]
[1756821172356,1.0976,4382.6,4381.8,3.4848]
[1756821172654,3.2078,4382.7,4381.8,3.4848]
[1756821172855,1.0976,4382.6,4381.8,3.4848]
[1756821173059,1.0976,4382.6,4382.2,3.2078]
[1756821173254,1.0976,4382.6,4382.3,0.277]
[1756821173454,1.0976,4382.7,4381.7,3.2078]
[1756821173652,1.0976,4382.7,4381.7,3.4848]
[1756821173848,3.2078,4382.8,4381.7,3.4848]
[1756821174555,0.277,4382.9,4381.7,3.2078]
[1756821174556,1.0976,4382.9,4381.7,3.2078]
[1756821174761,1.0976,4382.7,4381.8,0.277]
[1756821175664,3.2078,4382.8,4381.7,3.2078]
[1756821175862,1.0976,4382.2,4381.7,3.4848]
[1756821176074,3.2078,4382.3,4381.7,3.4848]
[1756821176265,4.3054,4382.3,4381.7,3.4848]
[1756821176464,1.0976,4382.3,4381.7,3.4848]
[1756821176974,3.2078,4382.8,4381.8,0.277]
[1756821176975,1.0976,4382.7,4381.8,0.277]
[1756821177866,1.0976,4382.7,4382.4,3.2078]
[1756821178063,1.0976,4382.9,4382.3,0.277]
[1756821178266,1.0976,4382.9,4382.4,3.2078]
[1756821178575,1.0976,4383.3,4382.3,0.277]
[1756821178773,3.2078,4382.4,4381.3,3.2078]
[1756821179072,3.2078,4382.4,4380.5,0.9783]
[1756821179073,1.0976,4381.6,4380.7,3.2078]
[1756821179270,1.3746,4382.1,4381.4,3.2078]
[1756821179472,3.2078,4381.8,4380.9,3.2078]
[1756821179674,1.0976,4381.7,4380.9,3.2078]
[1756821179975,1.0976,4381.7,4380.9,3.4848]
[1756821180574,1.0976,4381.7,4381.0,3.2078]
[1756821180975,0.277,4381.7,4380.5,3.2078]
[1756821181175,1.5275,4381.2,4380.5,3.2078]
[1756821181373,1.0976,4381.1,4380.5,3.2078]
[1756821181573,1.0976,4381.1,4377.0,0.2539]
[1756821181574,0.4299,4380.6,4378.7,3.2078]
[1756821181877,1.0976,4379.8,4378.7,3.2078]
[1756821182067,3.2078,4379.9,4378.7,3.2078]
[1756821182267,3.2078,4379.7,4379.1,3.2078]
[1756821182467,0.276,4380.2,4379.6,3.2078]
[1756821182468,3.2078,4380.2,4379.6,3.2078]
[1756821182672,1.0976,4380.1,4379.4,3.2078]
[1756821182873,1.0976,4380.0,4379.9,3.2078]
[1756821183169,3.9137,4380.6,4379.2,0.276]
[1756821183170,0.4299,4380.6,4379.3,3.2078]
[1756821183375,0.4299,4380.6,4379.4,0.276]
[1756821183574,3.2078,4380.4,4379.5,0.276]
[1756821183777,3.2078,4380.4,4379.4,3.2078]
[1756821184174,1.0976,4380.5,4379.4,3.2078]
[1756821184371,1.0976,4380.5,4379.9,3.2078]
[1756821184877,3.4838,4381.0,4379.9,3.2078]
[1756821185078,1.0976,4380.9,4379.5,0.9484]
[1756821185274,1.0976,4380.9,4379.6,0.276]
[1756821185476,1.0976,4380.9,4380.0,4.1562]
[1756821185674,1.0976,4380.9,4380.1,0.276]
[1756821186273,3.2078,4381.0,4380.1,0.276]
[1756821186583,1.0976,4381.5,4380.6,3.2078]
[1756821186882,1.0976,4381.5,4380.6,3.4838]
[1756821187084,1.0976,4381.5,4380.6,0.276]
[1756821187572,3.2078,4382.2,4380.6,0.276]
[1756821187775,4.3054,4382.2,4381.2,3.2078]
[1756821187975,4.3054,4382.2,4381.2,3.4838]
[1756821188879,4.3054,4382.2,4381.2,3.2078]
[1756821189075,1.0067,4382.1,4381.3,0.276]
[1756821189282,1.0067,4382.1,4380.8,0.276]
[1756821189580,1.0067,4381.6,4380.8,0.276]
[1756821189776,1.0067,4381.6,4380.6,3.2078]
[1756821189979,1.0067,4381.1,4380.0,3.2078]
[1756821190178,3.2078,4380.3,4379.6,0.9394]
[1756821190377,1.2827,4381.1,4379.5,3.2078]
[1756821190378,1.0067,4380.9,4379.5,3.4838]
[1756821190678,1.0067,4380.9,4380.0,3.2078]
[1756821190880,1.0067,4380.9,4379.6,0.9394]
[1756821191182,1.0067,4380.4,4379.5,3.4838]
[1756821191573,3.2078,4381.0,4380.1,0.9394]
[1756821191772,1.0067,4381.1,4380.2,0.276]
[1756821191975,3.2078,4380.5,4379.7,0.276]
[1756821192179,1.0067,4380.4,4379.4,3.2078]
[1756821193179,1.0067,4380.4,4379.5,0.276]
[1756821193372,1.0067,4381.0,4379.7,3.2078]
[1756821193573,1.0067,4381.0,4380.2,3.2078]
[1756821193783,1.0067,4380.5,4379.7,3.2078]
[1756821194078,1.0067,4380.3,4379.0,3.2078]
[1756821194281,1.0067,4380.3,4379.1,0.276]
[1756821195278,1.0067,4381.0,4380.1,3.2078]
[1756821195490,1.0067,4381.1,4380.9,3.2078]
[1756821195779,1.0067,4381.1,4380.3,0.276]
[1756821195780,3.2078,4381.1,4380.3,0.276]
[1756821195986,1.0067,4381.0,4380.0,0.276]
[1756821196186,1.0067,4381.0,4380.3,3.2078]
[1756821196578,3.4838,4381.6,4380.3,3.4838]
[1756821196780,1.0067,4381.4,4380.3,3.4838]
[1756821196979,1.0067,4381.4,4380.4,0.276]
[1756821197977,1.0067,4382.1,4381.0,3.2078]
[1756821198178,1.0067,4382.1,4382.0,3.2078]
[1756821198383,3.2078,4382.6,4382.0,3.2078]
[1756821198588,1.0067,4382.5,4381.5,3.2078]
[1756821198788,1.2827,4382.9,4382.0,3.2078]
[1756821198984,1.0067,4382.8,4382.5,3.2078]
[1756821199185,1.0067,4382.8,4382.3,3.2078]
[1756821199484,4.2145,4382.8,4381.8,4.1472]
[1756821199984,4.2145,4382.8,4381.8,3.2078]
[1756821200282,3.2078,4382.3,4381.4,3.2078]
[1756821200484,3.2078,4382.3,4381.3,3.2078]
[1756821200678,1.0067,4382.1,4381.5,3.2078]
[1756821200880,0.276,4382.0,4380.7,0.276]
[1756821201080,3.2078,4382.2,4380.8,3.2078]
[1756821201081,1.439,4381.8,4380.8,3.2078]
[1756821201378,1.0067,4381.6,4380.9,3.2078]
[1756821201581,0.4323,4382.4,4380.6,0.276]
[1756821201776,4.96369729,4382.3,4381.0,0.9394]
[1756821201989,4.96369729,4382.3,4380.9,3.2078]
[1756821201990,1.02520707,4382.2,4380.9,3.2078]
[1756821202184,1.0067,4382.1,4380.9,3.2078]
[1756821204179,1.0067,4381.5,4380.3,3.2078]
[1756821204380,3.2078,4381.6,4380.3,3.2078]
[1756821204588,4.4905,4381.5,4380.3,3.4838]
[1756821204985,3.2078,4381.5,4380.3,3.2078]
[1756821205182,1.0067,4380.9,4380.3,3.2078]
[1756821205490,0.276,4380.9,4379.7,3.2078]
[1756821205683,1.0067,4380.5,4379.5,0.276]
[1756821205879,3.2078,4380.4,4379.5,0.276]
[1756821206181,3.2078,4379.9,4378.9,3.2078]
[1756821206491,1.0067,4379.3,4378.3,4.1472]
[1756821206882,1.0067,4379.3,4378.5,3.2078]
[1756821207085,1.0067,4379.3,4378.2,0.276]
[1756821207289,0.276,4379.2,4378.0,3.2078]
[1756821207588,3.2078,4378.3,4377.2,0.9394]
[1756821207785,1.439,4378.2,4376.9,3.4838]
[1756821208190,0.4323,4378.2,4376.9,3.2078]
[1756821208388,1.0067,4377.7,4376.9,3.2078]
[1756821208983,0.276,4377.9,4377.0,0.9394]
[1756821209183,1.2827,4377.9,4377.0,0.9394]
[1756821209489,0.4323,4378.2,4376.9,3.2078]
[1756821209785,1.0067,4377.7,4376.9,3.2078]
[1756821209985,3.2078,4377.8,4376.9,3.2078]
[1756821209986,0.7083,4377.6,4376.9,3.2078]
[1756821210192,1.0067,4377.2,4376.3,3.2078]
[1756821210689,0.4323,4377.0,4375.7,3.2078]
[1756821210889,1.0067,4376.9,4375.7,3.2078]
[1756821211093,3.2078,4377.3,4376.6,0.9394]
[1756821211690,1.0067,4377.6,4376.6,0.9394]
[1756821212090,1.439,4378.2,4377.3,3.2078]
[1756821212297,0.276,4378.1,4377.3,3.2078]
[1756821212497,0.276,4378.0,4377.3,3.2078]
[1756821213290,1.0067,4378.2,4377.3,3.2078]
[1756821213589,1.0067,4377.8,4376.7,3.2078]
[1756821213989,1.2827,4377.8,4376.7,4.1472]
[1756821214185,1.2827,4377.8,4376.1,3.2078]
[1756821214186,0.4323,4377.6,4376.1,3.2078]
[1756821214387,1.0067,4376.1,4374.8,2.6350707]
[1756821214590,0.4323,4377.0,4373.8,2.7007238]
[1756821214591,1.0067,4375.6,4373.8,3.2078]
[1756821214787,1.0067,4374.9,4373.4,3.2078]
[1756821214992,0.4323,4375.2,4372.5,1.0918]
[1756821214993,1.0067,4374.2,4372.5,1.0918]
[1756821215285,1.0067,4374.0,4372.5,1.0918]
[1756821215697,3.2078,4372.9,4371.7,1.0918]
[1756821215891,3.2078,4372.4,4371.7,1.0918]
[1756821216086,1.0067,4373.1,4371.7,1.0918]
[1756821216288,1.0067,4373.1,4372.8,3.2078]
[1756821216485,1.0067,4373.0,4371.7,1.0918]
[1756821216689,3.2078,4372.6,4371.7,1.0918]
[1756821217388,3.2078,4372.6,4371.4,3.2078]
[1756821217389,1.0067,4372.4,4371.4,3.2078]
[1756821217592,3.2078,4372.6,4372.0,1.0918]
[1756821217992,3.4838,4373.5,4372.4,1.0918]
[1756821218187,1.0067,4373.4,4372.0,3.2078]
[1756821218493,0.276,4373.3,4372.1,1.0918]
[1756821218898,1.0067,4373.4,4372.1,1.0918]
[1756821219096,3.2078,4373.5,4372.7,1.0691]
[1756821219300,3.2078,4374.8,4373.5,1.0691]
[1756821219689,3.2078,4374.3,4373.5,1.0691]
[1756821219893,1.0072,4374.9,4373.3,3.4838]
[1756821219894,0.276,4374.8,4374.0,1.0691]
[1756821220296,1.0072,4374.9,4374.0,1.0691]
[1756821220597,0.276,4374.9,4373.9,3.2078]
[1756821220796,0.276,4375.0,4374.0,1.0691]
[1756821220996,3.2078,4375.1,4374.0,1.0691]
[1756821221198,0.276,4375.0,4374.0,4.2769]
[1756821221398,0.276,4375.0,4374.0,1.0691]
[1756821221701,3.2078,4375.1,4374.0,1.0691]
[1756821222004,3.4838,4375.1,4374.0,1.0691]
[1756821222405,0.4323,4376.4,4373.4,3.2078]
[1756821222406,3.2078,4374.6,4373.4,4.2769]
[1756821222602,0.276,4374.5,4373.4,1.0691]
[1756821222803,4.215,4374.4,4373.4,1.0691]
[1756821223002,4.215,4374.4,4372.8,4.2769]
[1756821223003,3.2078,4373.9,4372.8,4.2769]
[1756821223203,3.2078,4373.9,4373.0,1.0691]
[1756821223498,3.2078,4374.5,4373.6,1.0691]
[1756821224001,1.0072,4375.0,4373.8,1.0691]
[1756821224313,3.2078,4375.2,4374.0,1.0691]
[1756821224500,0.276,4375.1,4374.0,1.0691]
[1756821224698,3.2078,4375.2,4374.1,1.0691]
[1756821224898,3.2078,4375.2,4374.2,0.276]
[1756821225104,3.2078,4375.2,4374.1,1.0691]
[1756821225105,1.0072,4375.1,4374.1,1.0691]
[1756821225604,3.2078,4375.2,4374.1,1.0691]
[1756821225804,1.0072,4375.8,4374.1,1.0691]
[1756821225805,3.2078,4374.7,4374.1,1.0691]
[1756821226196,1.2832,4375.1,4374.1,1.0691]
[1756821226406,1.2832,4375.1,4374.2,3.2078]
[1756821226599,0.1142,4375.0,4374.1,1.0691]
[1756821226804,0.1142,4375.0,4374.2,3.2078]
[1756821227005,3.2078,4374.5,4373.3,1.0691]
[1756821227500,1.0072,4374.4,4373.3,1.0691]
[1756821227906,1.0072,4374.4,4373.2,3.2078]
[1756821227907,1.0072,4374.4,4373.1,0.276]
[1756821228103,3.2078,4373.8,4373.1,0.276]
[1756821228301,1.0072,4373.6,4372.7,1.0691]
[1756821228602,1.0072,4373.1,4372.0,1.0691]
[1756821228794,3.2078,4372.7,4372.0,1.0691]
[1756821229700,0.276,4373.2,4372.0,1.0691]
[1756821229896,0.276,4373.1,4372.0,1.0691]
[1756821230306,1.2832,4373.2,4372.0,1.0691]
[1756821230500,1.0072,4373.2,4372.0,1.0691]
[1756821230701,0.276,4373.1,4372.0,1.0691]
[1756821230911,0.276,4373.1,4372.0,1.3451]
[1756821231201,3.2078,4372.3,4371.4,1.0691]
[1756821232104,0.276,4372.2,4371.4,1.0691]
[1756821232406,0.276,4372.1,4371.4,1.0691]
[1756821232609,3.2078,4372.3,4371.6,3.2078]
[1756821233006,3.2078,4372.3,4371.4,1.0691]
[1756821233602,0.276,4372.2,4371.1,0.276]
[1756821233903,1.0072,4372.1,4371.1,1.0691]
[1756821234110,3.2078,4372.3,4371.5,3.2078]
[1756821234512,0.276,4372.2,4371.5,3.2078]
[1756821234706,1.0072,4372.1,4371.1,1.0691]
[1756821235099,3.2078,4372.3,4371.4,3.2078]
[1756821235305,3.2078,4372.3,4371.1,1.0691]
[1756821235306,1.0072,4372.2,4371.1,1.0691]
[1756821235505,0.276,4372.1,4371.1,1.0691]
[1756821235906,1.0072,4372.2,4371.1,1.0691]
[1756821236104,3.2078,4372.3,4371.5,1.0691]
[1756821236304,3.4838,4372.8,4372.1,4.2769]
[1756821236506,1.0072,4372.7,4371.4,1.0691]
[1756821237103,1.2832,4372.7,4371.4,1.0691]
[1756821237299,1.0072,4372.7,4372.1,3.2078]
[1756821237512,0.276,4372.7,4372.4,1.0691]
[1756821237705,1.0072,4373.2,4372.3,4.2769]
[1756821237905,1.0072,4373.2,4371.3,0.22873]
[1756821237906,3.2078,4372.6,4371.6,0.275]
[1756821238207,1.0072,4372.5,4371.6,0.275]
[1756821238508,1.0072,4372.4,4371.7,1.0691]
[1756821239207,1.0072,4372.4,4371.2,3.2078]
[1756821239208,1.0072,4372.0,4371.2,3.2078]
[1756821239434,1.0072,4371.8,4371.2,3.2078]
[1756821239607,0.3893,4371.9,4370.5,3.2078]
[1756821239815,1.0072,4371.4,4370.5,3.2078]
[1756821240207,3.2078,4371.5,4370.6,1.0691]
[1756821240605,1.0072,4371.4,4370.6,1.0691]
[1756821241504,0.1143,4371.9,4371.4,1.0691]
[1756821241706,0.1143,4371.9,4371.8,4.2769]
[1756821241905,0.1143,4371.9,4371.8,3.2078]
[1756821242215,0.1143,4371.9,4371.8,8.2769]
[1756821242412,1.0072,4373.1,4371.9,1.0691]
[1756821242619,3.2078,4372.8,4371.9,1.0691]
[1756821243012,3.2078,4372.8,4372.0,0.275]
[1756821243209,3.2078,4372.8,4372.1,1.0691]
[1756821243810,0.419,4374.6,4372.0,0.275]
[1756821243811,3.2078,4373.7,4372.7,4.2769]
[1756821244110,0.52178019,4373.6,4372.7,4.2769]
[1756821244313,1.0072,4373.0,4372.0,1.0691]
[1756821244508,1.0072,4373.0,4372.1,3.2078]
[1756821244706,1.2822,4373.6,4372.8,3.2078]
[1756821244904,0.52188457,4373.5,4372.9,1.0691]
[1756821245109,3.2078,4374.5,4373.6,1.0691]
[1756821245313,1.52889785,4374.4,4373.5,3.4828]
[1756821245505,1.52889785,4374.4,4373.0,1.0691]
[1756821245506,0.52169785,4374.3,4373.0,41.8691]
[1756821245708,1.0072,4374.2,4373.0,41.8691]
[1756821245911,1.0072,4374.2,4373.1,0.275]
[1756821246110,1.0072,4374.2,4373.4,3.2078]
[1756821246512,1.0072,4374.2,4373.2,1.3441]
[1756821246714,0.52170239,4374.1,4373.2,1.3441]
[1756821246917,3.2078,4374.5,4373.8,3.2078]
[1756821247118,3.4828,4375.0,4374.4,3.2078]
[1756821247420,3.2078,4375.0,4374.4,3.2078]
[1756821247617,0.275,4375.9,4374.9,3.2078]
[1756821247916,0.52148006,4375.8,4375.0,1.0691]
[1756821248116,0.52148006,4375.7,4375.0,1.0691]
[1756821248419,1.0072,4376.9,4375.7,1.0691]
[1756821248621,0.52101349,4376.8,4376.4,3.2078]
[1756821248815,1.0072,4377.5,4376.5,1.3441]
[1756821249016,0.52096603,4377.4,4376.5,1.3441]
[1756821249222,1.0072,4377.5,4376.5,1.0691]
[1756821249524,3.2078,4377.1,4376.4,3.2078]
[1756821249912,3.2078,4377.1,4376.3,1.0389]
[1756821250120,3.2078,4377.1,4376.3,4.2467]
[1756821250718,3.2078,4377.1,4376.4,1.0389]
[1756821251116,3.2078,4377.1,4376.5,0.275]
[1756821251517,1.0486,4377.0,4376.0,0.275]
[1756821251712,3.2078,4376.6,4375.8,1.0389]
[1756821251922,1.0486,4376.5,4375.6,0.275]
[1756821252620,1.0486,4375.8,4374.8,3.2078]
[1756821252816,1.0486,4375.8,4375.0,0.275]
[1756821253017,0.275,4376.0,4374.1,3.2078]
[1756821253018,1.0486,4375.2,4374.1,3.2078]
[1756821253215,1.0486,4375.2,4373.6,0.275]
[1756821253216,0.275,4375.1,4373.6,0.275]
[1756821253520,3.2078,4374.7,4373.9,3.2078]
[1756821253724,1.0486,4374.6,4373.6,0.275]
[1756821254315,1.0486,4374.6,4373.9,3.2078]
[1756821254721,3.2078,4374.2,4373.3,3.2078]
[1756821255026,4.2564,4374.9,4373.9,3.2078]
[1756821255519,4.5314,4374.9,4373.5,1.0389]
[1756821255821,4.2564,4374.3,4372.8,1.0389]
[1756821256026,3.2078,4374.3,4373.5,3.2078]
[1756821256223,3.2078,4374.3,4373.3,1.0389]
[1756821257317,3.2078,4374.3,4373.6,3.2078]
[1756821257516,1.0486,4374.2,4373.0,3.2078]
[1756821257721,1.0486,4374.2,4373.0,3.4828]
[1756821258117,1.0486,4374.2,4373.0,3.2078]
[1756821258824,3.2078,4374.3,4373.7,1.0389]
[1756821259621,3.2078,4374.3,4373.5,0.275]
[1756821259826,3.2078,4374.3,4373.6,1.0389]
[1756821260625,3.2078,4374.3,4373.4,0.275]
[1756821260929,3.2078,4374.3,4373.4,3.4828]
[1756821261129,3.2078,4374.3,4373.0,1.0389]
[1756821261330,1.0486,4374.2,4373.3,3.2078]
[1756821261629,1.0486,4374.2,4373.0,1.0389]
[1756821261826,3.2078,4374.3,4373.5,1.0389]
[1756821262130,4.2564,4375.0,4374.1,1.0389]
[1756821262325,4.2564,4375.0,4374.1,1.3139]
[1756821262530,1.0486,4374.9,4373.7,0.275]
[1756821262723,1.0486,4374.9,4373.5,3.2078]
[1756821262923,1.0486,4374.9,4373.7,0.275]
[1756821263326,0.275,4374.8,4374.1,3.2078]
[1756821263623,1.0486,4374.9,4374.2,0.275]
[1756821263830,3.2078,4375.0,4374.3,1.0389]
[1756821264022,1.0486,4375.5,4374.6,3.2078]
[1756821264219,1.0486,4375.5,4374.7,1.3139]
[1756821264431,3.2078,4376.0,4374.8,1.0389]
[1756821264631,1.0486,4376.2,4375.5,4.2467]
[1756821264934,3.2078,4376.5,4375.6,0.275]
[1756821265327,1.0486,4378.1,4376.1,3.2078]
[1756821265629,1.0486,4378.1,4377.7,3.2078]
[1756821265829,1.0486,4378.1,4377.0,3.2078]
[1756821266027,1.4689,4377.1,4377.0,3.2078]
[1756821266419,1.4689,4377.1,4376.3,3.2078]
[1756821266627,0.4203,4377.1,4376.3,3.2078]
[1756821266830,0.4203,4377.1,4376.7,3.2078]
[1756821267028,1.0486,4377.7,4376.7,3.2078]
[1756821267325,0.4203,4377.1,4376.7,3.2078]
[1756821267524,4.2564,4377.0,4376.0,3.2078]
[1756821267731,1.0486,4376.3,4375.5,0.26305616]
[1756821267926,1.0486,4376.3,4375.4,3.2078]
[1756821268134,0.4203,4375.7,4375.4,3.2078]
[1756821268428,1.0486,4375.6,4375.4,3.2078]
[1756821268625,0.4203,4375.7,4375.4,3.4818]
[1756821268926,0.4203,4375.7,4375.4,3.2078]
[1756821269129,1.4689,4375.7,4375.4,3.2078]
[1756821269332,1.0486,4375.6,4375.5,0.274]
[1756821269728,4.2564,4376.3,4375.5,0.274]
[1756821269928,4.2564,4376.3,4375.6,0.274]
[1756821270128,1.0486,4375.6,4374.9,3.2078]
[1756821270428,1.0486,4375.6,4375.0,0.274]
[1756821270633,1.0486,4375.6,4375.5,3.2078]
[1756821270838,1.0486,4375.6,4375.5,3.4818]
[1756821271127,1.0486,4377.0,4375.5,7.71034]
[1756821271327,0.4203,4377.8,4376.9,3.2078]
[1756821271526,1.0486,4377.5,4376.9,3.2078]
[1756821271829,1.0486,4377.7,4377.0,0.274]
[1756821272034,1.0486,4377.7,4377.5,3.2078]
[1756821272331,1.0486,4377.7,4377.5,0.274]
[1756821272525,0.4203,4377.1,4376.8,3.2078]
[1756821272725,0.4203,4377.1,4376.8,3.4818]
[1756821272927,0.4203,4377.1,4376.3,3.2078]
[1756821273225,1.0486,4377.0,4376.8,3.2078]
[1756821273426,1.0486,4377.0,4376.9,0.274]
[1756821274122,1.0486,4377.0,4376.4,3.2078]
[1756821274333,0.4203,4377.1,4376.5,0.274]
[1756821274535,0.4203,4377.1,4376.4,3.2078]
[1756821274536,0.4203,4377.1,4376.6,0.274]
[1756821274834,1.4689,4377.1,4376.9,3.2078]
[1756821275136,1.4689,4377.8,4377.0,0.274]
[1756821275333,0.4203,4378.5,4377.4,3.2078]
[1756821275537,1.4689,4378.5,4377.8,3.2078]
[1756821275836,1.4689,4378.5,4378.4,3.2078]
[1756821276035,0.4203,4378.5,4378.4,3.4818]
[1756821276431,0.4203,4378.5,4376.3,32.914]
[1756821276432,5.4689,4378.5,4376.3,32.914]
[1756821276641,0.4203,4378.5,4378.2,3.2078]
[1756821276837,0.4203,4378.5,4378.3,0.274]
[1756821277033,1.0486,4378.4,4378.2,3.2078]
[1756821277428,1.0486,4378.3,4378.2,3.2078]
[1756821277633,1.0486,4378.3,4378.2,3.4818]
[1756821277833,1.0486,4378.3,4377.5,3.2078]
[1756821277834,4.0,4378.3,4377.5,3.2078]
[1756821278132,1.0486,4378.2,4377.6,0.274]
[1756821278326,1.0486,4378.2,4377.5,3.2078]
[1756821278327,0.4203,4377.8,4377.5,3.2078]
[1756821278536,1.0486,4377.7,4377.6,0.274]
[1756821279240,1.4711,4378.5,4377.6,0.274]
[1756821279541,1.0508,4379.1,4378.0,3.2078]
[1756821279739,3.2078,4379.4,4378.7,3.2078]
[1756821279936,1.0508,4379.1,4378.8,0.274]
[1756821280139,3.4818,4380.1,4378.9,0.274]
[1756821280440,1.0508,4379.1,4378.9,0.274]
[1756821281040,0.4203,4379.9,4379.0,0.274]
[1756821281237,1.0508,4379.1,4378.6,3.2078]
[1756821281541,0.4203,4379.9,4378.7,0.274]
[1756821281738,3.2078,4379.5,4378.8,0.274]
[1756821281935,3.2078,4379.5,4378.0,3.2078]
[1756821282136,1.0508,4379.1,4378.0,3.2078]
[1756821282330,1.0508,4379.1,4378.5,3.2078]
[1756821282532,1.4711,4379.2,4378.6,0.274]
[1756821282839,1.4711,4379.2,4378.5,3.2078]
[1756821283142,0.4203,4379.2,4377.9,3.2078]
[1756821283331,3.2078,4379.0,4378.0,0.274]
[1756821283639,1.0508,4379.1,4378.7,3.2078]
[1756821283943,3.2078,4379.8,4378.8,0.274]
[1756821284536,3.2078,4379.8,4378.9,0.274]
[1756821284738,0.3857,4378.8,4378.7,3.2078]
[1756821284942,0.3857,4378.8,4378.7,3.4818]
[1756821285137,1.4365,4378.8,4378.7,3.2078]
[1756821285337,1.0508,4378.7,4377.4,1.056]
[1756821285542,3.2078,4377.8,4377.4,1.056]
[1756821286142,3.2078,4377.8,4377.2,0.274]